[Event "35th Staufer-Open-A 2025"]
[Site "Schwaebisch Gmuend"]
[Date "2025.01.06"]
[Round "9.12"]
[White "Albert, Markus"]
[Black "Boder, Jan"]
[Result "1/2-1/2"]
[ECO "B28"]
[WhiteElo "2202"]
[BlackElo "2324"]
[Annotator "TA"]
[PlyCount "48"]
[EventDate "2024.11.24"]
[EventType "swiss"]
[EventCountry "GER"]
[SourceTitle "playchess.com"]
[Source "ChessBase"]
[SourceQuality "1"]
[TimeControl "40/6000+30:1200+30"]

{[%evp 12,48,56,56,54,53,42,38,64,28,60,55,56,29,66,62,69,82,91,97,105,101,106,97,97,95,98,101,123,122,108,111,104,129,110,129,126,132,127]} 1. e4 {[%emt 0:00:04]} c5 {[%emt 0:01:16]} 2. Nf3 {[%emt 0:00:29]} a6 {[%emt 0:00:06]} 3. Nc3 {[%emt 0:01:02]} Nc6 {[%emt 0:03:37]} 4. d4 {[%emt 0:00:44]} cxd4 {[%emt 0:00:55]} 5. Nxd4 {[%emt 0:00:10]} e5 {[%emt 0:03:21]} 6. Nf5 {[%emt 0:09:49]} d6 {[%emt 0:11:34]} 7. Ne3 {[%emt 0:01:07]} Nf6 {[%emt 0:01:09]} 8. Ned5 {[%emt 0:01:17]} Nxd5 {[%emt 0:01:13]} 9. Nxd5 {[%emt 0:00:12] aiming for Be3.} Be6 {[%emt 0:01:24] White is slightly better.} 10. c3 {[%emt 0:05:07]} Be7 {[%emt 0:04:23]} 11. Be2 {[%emt 0:08:55]} O-O {[%emt 0:01:09]} 12. O-O {[%emt 0:01:09]} h6 {[%emt 0:10:26][%cal Bh7h6,Bh6g5][%mdl 32]} 13. Bg4 {[%emt 0:02:34]} Bxd5 {[%emt 0:03:40]} 14. Qxd5 {[%emt 0:04:47]} Qc7 {[%emt 0:08:16]} 15. Be3 {[%emt 0:07:11]} Bg5 {[%emt 0:03:44]} 16. Bxg5 {[%emt 0:02:17]} hxg5 {[%emt 0:00:09]} 17. Rad1 {[%emt 0:00:27]} Rad8 {[%emt 0:00:59]} 18. Rfe1 {[%emt 0:01:01][%cal Bf1e1,Be1e3,Be3g3][%mdl 32] Black is weak on the light squares} g6 {[%emt 0:07:20]} 19. Re3 {[%emt 0:03:02]} Qe7 {[%emt 0:18:47]} 20. Rg3 {[%emt 0:03:02]} Kg7 {[%emt 0:00:56]} 21. Be2 {[%emt 0:01:45]} Na7 {[%emt 0:03:13]} 22. Qd2 {[%emt 0:04:59] White is much more active.} f6 {[%emt 0:00:28]} 23. Rd3 {[%emt 0:02:15]} Nc8 {[%emt 0:00:11]} 24. h3 {[%emt 0:00:27]} b5 {[%emt 0:03:24] Weighted Error Value: White=0.05 (flawless) /Black=0.09 (flawless) .  Inaccurate:     	White=2     	Black=3      OK:         	White=6     	Black=5} 1/2-1/2

[Event "35th Staufer-Open-A 2025"]
[Site "Schwaebisch Gmuend"]
[Date "2025.01.06"]
[Round "9.13"]
[White "Besou, Hussain"]
[Black "Chen, Muxi"]
[Result "1-0"]
[ECO "B31"]
[WhiteElo "2322"]
[BlackElo "2104"]
[Annotator "TA"]
[PlyCount "149"]
[EventDate "2024.11.24"]
[EventType "swiss"]
[EventCountry "GER"]
[SourceTitle "playchess.com"]
[Source "ChessBase"]
[SourceQuality "1"]
[TimeControl "40/6000+30:1200+30"]

{[%evp 51,149,283,263,0,0,0,0,0,0,0,0,0,0,0,0,0,0,0,0,-361,-240,-312,0,-68,0,-333,-316,-325,-321,-562,-557,-754,-703,-602,-585,-506,12,20,20,20,12,12,12,0,0,-487,395,395,477,471,1856,3258,3587,2904,1681,1457,12652,4133,2727,2712,1229,504,29957,29949,29960,29961,29963,29964,29964,29965,29968,29969,29969,29970,29970,29971,29971,29972,29973,29971,29971,29958,29974,29976,29975,29975,29979,29980,29980,29977,29979,29978,29985,29984,29986,29984,29991,29992,29993,29994]} 1. e4 {[%emt 0:00:02]} c5 {[%emt 0:01:43]} 2. Nf3 {[%emt 0:00:04]} Nc6 {[%emt 0:00:06]} 3. Bb5 {[%emt 0:00:04]} g6 {[%emt 0:00:07]} 4. O-O {[%emt 0:00:06]} Bg7 {[%emt 0:00:12]} 5. Bxc6 {[%emt 0:00:07]} dxc6 {[%emt 0:00:06]} 6. h3 {[%emt 0:00:13]} e5 {[%emt 0:01:10]} 7. d3 {[%emt 0:00:11]} Qe7 {[%emt 0:02:19]} 8. Be3 {[%emt 0:13:13]} Nf6 {[%emt 0:01:23]} 9. Nc3 {[%emt 0:02:36]} Nd7 {[%emt 0:03:52]} 10. Qd2 {[%emt 0:01:16]} Nf8 {[%emt 0:05:43]} 11. Bh6 {[%emt 0:05:16]} f6 {[%emt 0:01:35]} 12. Bxg7 {[%emt 0:00:57]} Qxg7 {[%emt 0:00:07]} 13. Na4 {[%emt 0:08:50]} Ne6 {[%emt 0:21:19]} 14. a3 {[%emt 0:04:04]} b5 {[%emt 0:04:05]} 15. Nc3 {[%emt 0:00:12]} O-O {[%emt 0:00:24]} 16. a4 {[%emt 0:03:54]} b4 {[%emt 0:07:22]} 17. Ne2 {[%emt 0:03:28]} Ba6 {[%emt 0:02:06]} 18. b3 {[%emt 0:02:50]} Rae8 {[%emt 0:05:18]} 19. Qe3 {[%emt 0:07:01]} Nd4 {[%emt 0:11:07]} 20. Nfxd4 {[%emt 0:01:59]} cxd4 {[%emt 0:00:30]} 21. Qd2 {[%emt 0:00:03]} c5 {[%emt 0:00:25]} 22. f4 {[%emt 0:02:10]} Qh6 {[%emt 0:07:32]} 23. Ng3 {[%emt 0:02:58]} f5 {[%emt 0:08:41]} 24. Rf2 {[%emt 0:07:03]} Qh4 {[%emt 0:07:01]} 25. Kh2 {[%emt 0:01:47]} g5 {[%emt 0:05:39]} 26. Nxf5 {[%emt 0:20:33]} (26. exf5 exf4 27. Ne4 $19) 26... Rxf5 {[%emt 0:00:05]} 27. exf5 $2 {[%emt 0:00:28]} (27. g3 $1 $18 {[%cal Rg3h4]} Qh6 28. exf5 exf4 29. Re2 (29. gxf4 $2 Re3 $19)) 27... exf4 $11 {[%emt 0:00:17]} 28. Re2 {[%emt 0:00:19]} Re3 $1 {[%emt 0:02:45]} 29. Qe1 {[%emt 0:02:40]} Qxe1 {[%emt 0:02:37]} 30. Raxe1 {[%emt 0:00:19]} Bb7 {[%emt 0:00:51]} 31. Kg1 {[%emt 0:04:17]} Kf7 {[%emt 0:00:31]} 32. Rxe3 {[%emt 0:01:43]} dxe3 {[%emt 0:00:53]} 33. Rd1 {[%emt 0:02:22]} Ba6 {[%emt 0:02:51]} 34. Kf1 {[%emt 0:00:52]} Kf6 {[%emt 0:00:24]} 35. Ke1 $2 {[%emt 0:04:50][%mdl 8192] [#]} (35. g3 $1 $11) 35... Bb7 $1 $19 {[%emt 0:01:08]} (35... Kxf5 36. d4 Bb7 37. Kf1 $11) 36. Kf1 {[%emt 0:00:50]} Ba6 $2 {[%emt 0:00:43]} (36... Kxf5 37. d4 $15) (36... Bd5 $19 37. a5 Kxf5) 37. Ke1 {[%emt 0:01:00]} (37. g3 $11) 37... Bb7 $2 {[%emt 0:00:29][%mdl 8192]} (37... h5 $15 38. d4 Kxf5 39. dxc5 Bb7) 38. Kf1 $19 {[%emt 0:00:05]} Ke5 {[%emt 0:01:26]} (38... Kxf5 39. d4 cxd4 40. Rxd4 $11) 39. f6 {[%emt 0:01:25]} Bd5 $1 {[%emt 0:00:35]} (39... Kxf6 40. d4 Ba6+ 41. Ke1 $11) 40. Ke2 $2 {[%emt 0:01:52]} (40. a5 h5 (40... Kxf6 41. d4 $11) 41. Kg1) 40... Kxf6 $19 {[%emt 0:03:10]} 41. g3 {[%emt 0:23:11]} Ke5 {[%emt 0:11:22]} (41... fxg3 42. Rg1 $16) 42. gxf4+ {[%emt 0:00:00]} gxf4 {[%emt 0:00:39]} 43. Rg1 {[%emt 0:00:00]} Kd4 $2 {[%emt 0:03:53]} (43... h5 $19 44. Rg7 Kd4) 44. Rg4 $11 {[%emt 0:00:00]} Kc3 {[%emt 0:01:55]} 45. Rxf4 {[%emt 0:00:00]} Kxc2 {[%emt 0:00:19]} 46. Rf5 {[%emt 0:00:00]} Be6 $1 {[%emt 0:01:09]} 47. Rxc5+ {[%emt 0:00:00]} Kxb3 {[%emt 0:00:08]} 48. Kxe3 $2 {[%emt 0:00:00][%mdl 8192] [#]} (48. Re5 $11 Bxh3 49. Kxe3 (49. Rxe3 Bg4+ 50. Kd2 a5 $11)) 48... Ka3 $4 {[%emt 0:01:24][%mdl 8192]} (48... Ka2 $1 $19 {[%cal Ob4b3] White must now prevent ...b3!.} 49. Rc2+ Ka3) 49. Kd2 $18 {[%emt 0:00:00]} b3 {[%emt 0:00:51]} 50. Kc3 {[%emt 0:00:00]} Bd7 {[%emt 0:00:54]} (50... Bxh3 $142 51. Rb5 Kxa4 52. Rb4+ (52. Rxb3 h5 $18) 52... Ka5) 51. Rc7 $18 {[%emt 0:00:00]} Bc6 {[%emt 0:00:09]} 52. Rc8 {[%emt 0:00:00]} (52. Rxc6 $2 {too greedy.} b2 53. Rh6 (53. Kc2 $2 Ka2 $19) 53... b1=Q $19) 52... Bd5 {[%emt 0:01:11]} 53. Rb8 {[%emt 0:00:07]} Kxa4 {[%emt 0:00:36]} 54. Rb4+ {[%emt 0:00:14]} (54. Rh8 $142 a5 55. Rxh7) 54... Ka5 $18 {[%emt 0:00:48]} 55. Rh4 {[%emt 0:00:51]} Bg8 {[%emt 0:00:40]} 56. Rg4 {[%emt 0:00:32]} Be6 {[%emt 0:01:44]} (56... Bf7 $18 57. Rg7 Bg6 58. Rxa7+ Kb6) 57. Rg7 {[%emt 0:00:53]} Bxh3 {[%emt 0:01:17]} 58. Kxb3 {[%emt 0:03:42]} Be6+ {[%emt 0:00:52]} 59. Kc3 {[%emt 0:00:05]} Kb6 {[%emt 0:00:15]} 60. Rxh7 {[%emt 0:00:06]} Bg8 {[%emt 0:00:45]} 61. Rg7 {[%emt 0:00:36]} Ba2 {[%emt 0:00:39]} 62. Rg6+ {[%emt 0:01:26]} Kb5 {[%emt 0:00:19]} 63. Rg5+ {[%emt 0:00:04]} Kb6 {[%emt 0:00:08]} 64. Kb4 {[%emt 0:00:07]} Bb1 {[%emt 0:00:58]} 65. d4 {[%emt 0:00:31]} Bd3 {[%emt 0:00:20]} 66. Rh5 {[%emt 0:00:53]} a6 {[%emt 0:00:21]} 67. Rh6+ {[%emt 0:00:04]} Kc7 {[%emt 0:00:04]} 68. d5 {[%emt 0:00:14]} a5+ {[%emt 0:01:10]} 69. Kc5 {[%emt 0:01:41]} a4 {[%emt 0:00:18]} 70. Rh3 {[%emt 0:00:19]} Bc2 {[%emt 0:00:23]} 71. Rg3 {[%emt 0:00:25]} Bb3 {[%emt 0:00:14]} 72. Rg7+ {[%emt 0:00:24]} Kb8 {[%emt 0:00:14]} 73. d6 {[%emt 0:00:36]} Kc8 {[%emt 0:00:19]} 74. Kc6 {[%emt 0:00:33]} a3 {[%emt 0:00:36]} 75. Ra7 {[%emt 0:00:14]} 1-0

[Event "35th Staufer-Open-A 2025"]
[Site "Schwaebisch Gmuend"]
[Date "2025.01.06"]
[Round "9.14"]
[White "Dolzhykova, Kateryna"]
[Black "Gut, Lionel"]
[Result "1/2-1/2"]
[ECO "B06"]
[WhiteElo "2299"]
[BlackElo "2152"]
[Annotator "TA"]
[PlyCount "96"]
[EventDate "2024.11.24"]
[EventType "swiss"]
[EventCountry "GER"]
[SourceTitle "playchess.com"]
[Source "ChessBase"]
[SourceQuality "1"]
[TimeControl "40/6000+30:1200+30"]

{[%evp 9,96,70,106,106,95,44,86,66,145,146,174,162,157,164,195,179,169,121,122,130,152,91,209,212,235,243,256,243,244,225,195,215,186,25,40,0,0,-20,0,0,0,0,0,0,0,0,0,0,0,-108,-129,-255,-199,-217,-154,-153,0,-257,-216,-246,-202,-266,-248,-396,-297,-595,-196,-210,-17,-252,-25,-87,-10,-280,-272,-274,-268,-257,0,0,-7,0,0,0,0,0,0,-89,0]} 1. e4 {[%emt 0:00:02]} c5 {[%emt 0:00:06]} 2. Nc3 {[%emt 0:00:06]} g6 {[%emt 0:00:04]} 3. d4 {[%emt 0:02:35][%cal Bd2d4,Bd4c5,Bc5b6,Bb6a7][%mdl 32]} Bg7 {[%emt 0:05:29]} 4. dxc5 {[%emt 0:02:47]} Nc6 {[%emt 0:01:33]} 5. Be3 {[%emt 0:02:55]} Nf6 {[%emt 0:07:31]} 6. f3 {[%emt 0:08:33] White is more active.} O-O {[%emt 0:02:45]} 7. Qd2 {[%emt 0:01:19]} (7. Bb5 $16) 7... b6 {[%emt 0:19:11]} 8. cxb6 {[%emt 0:00:43]} e6 {[%emt 0:01:22]} (8... axb6 $14 9. Bb5 Ba6) 9. Bb5 $1 $16 {[%emt 0:06:16] Hoping for Bxc6.} Bb7 {[%emt 0:01:20]} 10. Bxc6 {[%emt 0:09:50]} Bxc6 {[%emt 0:00:10]} 11. bxa7 {[%emt 0:00:11]} d5 {[%emt 0:00:32]} 12. e5 {[%emt 0:00:25]} Nh5 {[%emt 0:01:14]} 13. Bd4 {[%emt 0:11:46]} ({White should try} 13. O-O-O $18) 13... f6 {[%emt 0:04:59]} 14. exf6 {[%emt 0:04:36]} Bxf6 {[%emt 0:02:55]} 15. Bxf6 {[%emt 0:00:05]} (15. Bc5 $142) 15... Qxf6 {[%emt 0:00:02]} (15... Nxf6 $16 16. Nh3 d4) 16. Nge2 $18 {[%emt 0:02:00]} Qh4+ {[%emt 0:01:19]} 17. g3 {[%emt 0:00:42]} Qb4 {[%emt 0:00:31]} 18. Nd4 {[%emt 0:02:13]} Bd7 {[%emt 0:01:14]} 19. f4 {[%emt 0:07:31]} Qxb2 {[%emt 0:03:49]} 20. Rb1 {[%emt 0:01:30]} Qa3 {[%emt 0:00:09]} 21. Rb7 $2 {[%emt 0:01:11]} (21. Ncb5 $18 Qxa2 22. O-O) 21... Rxa7 $11 {[%emt 0:00:55]} 22. Ndb5 {[%emt 0:02:59]} Bxb5 {[%emt 0:00:14]} 23. Rxb5 {[%emt 0:00:01]} Rc7 {[%emt 0:06:55]} 24. Rb3 {[%emt 0:00:44]} Qc5 {[%emt 0:00:20]} 25. Nb5 {[%emt 0:09:35]} Qxc2 {[%emt 0:02:41]} 26. Nxc7 {[%emt 0:00:05]} Qe4+ {[%emt 0:00:09]} 27. Qe2 {[%emt 0:00:27]} Qxh1+ {[%emt 0:00:13]} 28. Kd2 {[%emt 0:00:02]} Ng7 {[%emt 0:02:01]} 29. Rc3 {[%emt 0:07:29]} (29. Nxe6 $11 Re8 30. Rb7) 29... Qa1 {[%emt 0:04:24]} 30. Kd3 {[%emt 0:01:47]} (30. Rc2 $17) 30... Qb1+ {[%emt 0:00:16]} 31. Qc2 {[%emt 0:02:01]} Qf1+ {[%emt 0:00:18]} 32. Qe2 {[%emt 0:00:09]} Qb1+ {[%emt 0:00:47]} (32... Qxe2+ 33. Kxe2 Rb8 34. Rb3 Rxb3 35. axb3 $11) (32... Qa1 $17 33. Rc2 g5 34. Nxe6 Re8) 33. Qc2 $1 $19 {[%emt 0:00:08]} Qg1 {[%emt 0:01:58]} 34. Qe2 {[%emt 0:02:02] [#]} e5 $1 {[%emt 0:01:36][%mdl 512]} 35. Kc2 {[%emt 0:07:55]} (35. Nxd5 Qd4+) 35... Rb8 {[%emt 0:06:00] ( -> ...Qb1+)} 36. Nb5 {[%emt 0:00:59]} (36. Rb3 {was forced.} Qc5+ 37. Rc3) 36... Nf5 {[%emt 0:05:25][%cal Ob8b5]} 37. a4 $2 {[%emt 0:05:33]} (37. fxe5 $2 Rxb5 38. Rc8+ Kf7 (38... Kg7 $2 39. Rc7+ Kg8 40. Rc8+ Kf7 41. e6+ Ke7 42. Re8+ Kd6 43. Rd8+ Kc7 44. Qxb5 $19) 39. e6+ (39. Qxb5 $2 Nd4+ 40. Kd3 Nxb5 $19) (39. Rc7+ $2 Ke6 $19) 39... Kg7 (39... Ke7 $2 40. Re8+ Kd6 41. Rd8+ Kc7 42. Qxb5 $19) 40. Rc7+ Kh6 41. Qd2+ g5 $19) (37. Qxe5 Qf2+ (37... Rxb5 38. Rc8+ Kf7 39. Rc7+) (37... Qxh2+ 38. Kb3 $14) 38. Kd1 Qf1+ (38... Rxb5 39. Rc8+ Kf7 40. Rc7+) 39. Qe1 Qxe1+ (39... Qxb5 $2 40. Rb3 $19) 40. Kxe1 Rxb5 41. g4) 37... e4 $2 {[%emt 0:02:07]} (37... Qa1 {...Nd4+ would now be deadly.} 38. Kd2 Qxa4 39. Qxe5 Qxb5 (39... Rxb5 40. Rc8+ Kf7 41. Rc7+)) 38. Kb2 {[%emt 0:03:14]} e3 $2 {[%emt 0:07:48] Against Qd2} (38... d4 39. Rc1 Qe3 (39... d3 40. Rxg1 dxe2 41. Re1 $16) 40. Qxe3 Nxe3 41. Re1) (38... Qd4 $1 $19 {[%cal Rd4a4]} 39. Ka3 Qf6) 39. Ka2 $2 {[%emt 0:04:31] [#]} (39. Rc1 $11 Qf2 40. Rc2) 39... d4 $2 {[%emt 0:04:28]} (39... Ra8 $1 $19 {[%cal Ra8a4]} 40. Na3 Rxa4) 40. Qc4+ $11 {[%emt 0:00:40]} Kh8 {[%emt 0:01:51]} ({Better is} 40... Kg7 $17 41. Rc1 Qg2+ (41... Qxh2+ 42. Rc2 $11) 42. Rc2 Qe4) 41. Rc2 $2 {[%emt 0:03:04][%mdl 8192]} (41. Qe6 $1 $11 {and White has nothing to worry.} Qxh2+ (41... dxc3 42. Qe5+ Kg8 43. Qxb8+ Kg7 44. Nxc3 $11) (41... Qf2+ 42. Ka3 $11) 42. Ka3 dxc3 43. Qe5+ Kg8 44. Qxb8+ Kg7 45. Nxc3) 41... Qd1 $19 {[%emt 0:03:36]} 42. g4 {[%emt 0:03:23]} d3 {[%emt 0:01:07]} ({Stronger than} 42... Qxg4 43. Nxd4 Ng7 (43... Qxf4 $2 {too greedy.} 44. Qc8+ Rxc8 45. Rxc8+ Kg7 46. Ne6+ Kf6 47. Nxf4 $18) 44. a5 $15) 43. Rc1 {[%emt 0:01:58]} Qd2+ $2 {[%emt 0:04:32]} (43... Qe2+ $19 44. Kb1 Qxg4 (44... Ng7 45. f5 $19)) 44. Ka3 $1 $11 {[%emt 0:00:02]} Ng7 {[%emt 0:03:11]} 45. Qc7 $1 {[%emt 0:01:16]} Rf8 {[%emt 0:03:27][%cal Oe3e2]} 46. Qc5 $1 {[%emt 0:03:10] Chess con chili.} Rb8 {[%emt 0:04:24][%cal Oe3e2]} (46... Rxf4 47. Qc8+) 47. Qc7 $1 {[%emt 0:00:06]} Rf8 {[%emt 0:01:17]} (47... Ra8 $11 48. Nd6 Ne6 (48... Qxh2 49. Nf7+ Kg8 50. Ng5 $18) 49. Nf7+ Kg7 50. Qe5+ Kxf7) 48. Qc5 $1 $17 {[%emt 0:00:03] [#]} Rb8 {[%emt 0:04:33]} (48... Rxf4 49. Qc8+ $18) (48... Rg8 $1 $17 49. f5 gxf5 (49... Qxh2 50. f6 $14) 50. gxf5 e2 (50... Qxh2 51. Nd6 $11)) 1/2-1/2

[Event "35th Staufer-Open-A 2025"]
[Site "Schwaebisch Gmuend"]
[Date "2025.01.06"]
[Round "9.15"]
[White "Sydykov, Bayastan"]
[Black "Hasenohr, Benedict"]
[Result "1-0"]
[ECO "C07"]
[WhiteElo "2221"]
[BlackElo "2289"]
[Annotator "TA"]
[PlyCount "79"]
[EventDate "2024.11.24"]
[EventType "swiss"]
[EventCountry "GER"]
[SourceTitle "playchess.com"]
[Source "ChessBase"]
[SourceQuality "1"]
[TimeControl "40/6000+30:1200+30"]

{[%evp 14,79,20,19,2,16,30,18,24,26,28,27,26,20,29,40,23,39,47,46,50,50,48,48,45,-24,0,-31,-31,-21,-16,-18,-28,-45,53,55,60,51,44,51,51,41,63,0,37,29,34,58,146,146,146,167,362,366,543,472,1485,1029,1051,791,1283,1260,29987,29988,29992,29988,29989,29990]} 1. e4 {[%emt 0:01:20]} e6 {[%emt 0:00:07]} 2. d4 {[%emt 0:00:33]} d5 {[%emt 0:00:05]} 3. Nd2 {[%emt 0:00:13]} c5 {[%emt 0:00:06]} 4. Ngf3 {[%emt 0:00:10]} cxd4 {[%emt 0:00:21]} 5. Nxd4 {[%emt 0:00:07]} Nc6 {[%emt 0:04:42]} 6. Bb5 {[%emt 0:00:30]} Bd7 {[%emt 0:00:04]} 7. Nxc6 {[%emt 0:00:07]} bxc6 {[%emt 0:00:03]} 8. Bd3 {[%emt 0:00:06]} Bd6 {[%emt 0:00:08][%cal Bf8d6,Bd6c7,Bc7b6][%mdl 32]} 9. Qe2 {[%emt 0:01:02]} Ne7 {[%emt 0:00:28]} 10. e5 {[%emt 0:00:06]} Bc7 {[%emt 0:00:18]} 11. O-O {[%emt 0:00:30]} Ng6 {[%emt 0:02:58]} 12. f4 {[%emt 0:00:28]} O-O {[%emt 0:01:17]} 13. Nf3 {[%emt 0:01:41]} f5 {[%emt 0:28:20]} 14. c4 {[%emt 0:06:43]} Bb6+ {[%emt 0:00:40]} 15. Kh1 {[%emt 0:00:10]} d4 {[%emt 0:03:39]} 16. b4 {[%emt 0:06:59][%cal Bb2b4,Bb4b5][%mdl 32]} c5 {[%emt 0:00:21]} 17. b5 {[%emt 0:01:47]} a6 {[%emt 0:09:41]} 18. a4 {[%emt 0:01:49]} Ra7 {[%emt 0:01:53]} 19. Nd2 {[%emt 0:11:43]} (19. Qc2 $14) 19... Qc7 $11 {[%emt 0:03:42]} 20. Nb3 {[%emt 0:06:31]} axb5 $1 {[%emt 0:00:15]} 21. cxb5 {[%emt 0:05:53]} Rfa8 {[%emt 0:01:17]} 22. Qc2 $1 {[%emt 0:02:35]} c4 {[%emt 0:12:59]} 23. Bxc4 {[%emt 0:04:50][%cal Oa4a5]} Rc8 {[%emt 0:06:13]} (23... Rxa4 $15 24. Bd2 (24. Rxa4 Rxa4 25. Nd2 Rxc4 $15) 24... Nh4 (24... Rxc4 25. Rxa8+ Kf7 26. Qb1 $16) (24... Rxa1 25. Rxa1 Rxa1+ 26. Nxa1 $11) 25. Rxa4 Rxa4) 24. a5 {[%emt 0:01:05]} Bxa5 {[%emt 0:00:32]} (24... Qxc4 $2 25. Qxc4 Rxc4 26. axb6 Rxa1 27. b7 $18) 25. Nxa5 {[%emt 0:03:22]} (25. Qxf5 $2 {perishes.} Qxc4 26. Bb2 exf5 $19) 25... Rxa5 {[%emt 0:00:16]} 26. Rxa5 {[%emt 0:00:23]} ({But not} 26. Bxe6+ Bxe6 27. Qxc7 Rxa1 $17) 26... Qxa5 {[%emt 0:00:05]} 27. Qb3 $36 {[%emt 0:00:58][%mdl 2048] Prevents Qb4. White fights for an advantage.} Kf7 {[%emt 0:04:23] and ...Qc7 should not be overlooked} 28. Bb2 {[%emt 0:02:44]} (28. Rd1 $1 $14) 28... Qc7 {[%emt 0:04:54]} (28... Rxc4 $5 29. Qxc4 Bxb5 $18) 29. Bd3 {[%emt 0:03:20][%cal Bc4d3,Bd3f5,Bf5h3][%mdl 32]} Qb7 {[%emt 0:00:06]} 30. Bxf5 {[%emt 0:03:20]} Nh4 {[%emt 0:04:41]} (30... Rb8 $14) 31. Bh3 $16 {[%emt 0:00:28][%cal Of4f5] Chess con chili. This pair of bishops is nice.} (31. Bxh7 $2 Qxg2#) 31... g6 {[%emt 0:09:31]} 32. Bxd4 {[%emt 0:06:02]} Qe4 $2 {[%emt 0:00:06]} (32... Nf5) 33. Bg1 $18 {[%emt 0:02:54]} Kg7 {[%emt 0:09:03]} (33... Qc2 $142 34. Rb1 h6) 34. Ra1 {[%emt 0:14:09]} (34. Bxe6 $2 Qxg2#) 34... Rc2 {[%emt 0:02:09]} (34... Kh8 $142 35. Rd1 (35. Bxe6 $2 Qxg2#) 35... Qb7 36. Rxd7 (36. Bxe6 $2 Qxg2#) 36... Qxd7 37. Bxe6 (37. Qxe6 Qxe6 38. Bxe6 Rd8 $18) 37... Qd2) 35. Qg3 {[%emt 0:00:38]} (35. Bxe6 $2 Qxg2#) 35... Nf5 {[%emt 0:01:00]} 36. Qg5 {[%emt 0:00:37]} Qd3 {[%emt 0:01:34]} 37. Bg4 {[%emt 0:03:32] Strongly threatening Qf6+.} Bxb5 {[%emt 0:00:31]} 38. Ra7+ {[%emt 0:00:49]} Kg8 {[%emt 0:00:29]} 39. Qf6 {[%emt 0:00:41]} Bd7 {[%emt 0:00:22]} 40. Qd8+ {[%emt 0:00:07]} 1-0

[Event "35th Staufer-Open-A 2025"]
[Site "Schwaebisch Gmuend"]
[Date "2025.01.06"]
[Round "9.16"]
[White "Herrmann, Jakob"]
[Black "Melestean, Maxim"]
[Result "1-0"]
[ECO "E09"]
[WhiteElo "2234"]
[BlackElo "1962"]
[Annotator "TA"]
[PlyCount "87"]
[EventDate "2024.11.24"]
[EventType "swiss"]
[EventCountry "GER"]
[SourceTitle "playchess.com"]
[Source "ChessBase"]
[SourceQuality "1"]
[TimeControl "40/6000+30:1200+30"]

{[%evp 18,87,36,38,31,0,17,14,19,28,12,-25,0,-30,63,-25,-29,-38,-38,-47,0,-37,112,121,264,260,294,274,282,286,258,85,205,106,448,472,460,374,419,440,595,638,673,671,680,678,620,505,600,578,557,531,523,525,531,424,1128,1124,29981,972,1010,936,926,768,5406,5365,5336,5318,6411,6403,29992,29993]} 1. d4 {[%emt 0:00:30]} d5 {[%emt 0:00:30]} 2. c4 {[%emt 0:00:30]} e6 {[%emt 0:00:30]} 3. Nf3 {[%emt 0:00:30]} c6 {[%emt 0:00:30]} 4. Nbd2 {[%emt 0:00:30]} Nf6 {[%emt 0:00:36]} 5. g3 {[%emt 0:00:00]} Be7 {[%emt 0:00:23]} 6. Bg2 {[%emt 0:00:00]} O-O {[%emt 0:00:06]} 7. O-O {[%emt 0:00:00]} Nbd7 {[%emt 0:05:30]} 8. Qc2 {[%emt 0:00:00]} b6 {[%emt 0:00:23]} 9. e4 {[%emt 0:00:00]} dxc4 {[%emt 0:00:26]} 10. Nxc4 {[%emt 0:08:44]} Bb7 {[%emt 0:05:46]} 11. Nfe5 {[%emt 0:13:37]} Nxe5 {[%emt 0:08:38]} 12. dxe5 {[%emt 0:00:08]} Nd7 {[%emt 0:00:05]} 13. Rd1 {[%emt 0:00:58]} Qc7 {[%emt 0:00:04]} 14. Bf4 {[%emt 0:07:28]} Rfd8 {[%emt 0:05:15]} 15. h4 {[%emt 0:05:31]} h6 {[%emt 0:04:45]} (15... Ba6 $1 $11) 16. h5 {[%emt 0:04:01]} ({White should play} 16. Nd6 $14) 16... Ba6 $11 {[%emt 0:00:09]} 17. Ne3 {[%emt 0:11:27][%cal Oe3d5]} Nc5 {[%emt 0:05:25]} 18. Nc4 {[%emt 0:18:12]} Nd7 {[%emt 0:02:30]} (18... Bxc4 $15 {is more appropriate.} 19. Qxc4 Nb7) 19. Rac1 {[%emt 0:00:50]} (19. Nd6 Nxe5 $17) 19... Rac8 {[%emt 0:02:15]} (19... Bxc4 $15 {stays ahead.} 20. Qxc4 Nb8 (20... Nxe5 21. Qc3 $17)) 20. Nd6 $16 {[%emt 0:00:45]} Bxd6 {[%emt 0:00:39]} (20... c5 $16) 21. exd6 $18 {[%emt 0:00:23]} Qb8 {[%emt 0:00:10]} 22. e5 {[%emt 0:02:00][%cal Oc2d2]} c5 {[%emt 0:01:42]} 23. Qd2 $1 {[%emt 0:05:48][%cal Of4h6]} Bb7 {[%emt 0:03:51] [#]} 24. Rc4 $2 {[%emt 0:03:46]} (24. Bxh6 $1 $18 {and the rest is easy. White threatens Qg5 and mate.} gxh6 25. Qxh6 Bxg2 26. Kxg2 (26. Qg5+ Kh7 $17) 26... Qb7+ 27. f3) 24... Kh7 {[%emt 0:00:33] [#] Black is weak on the dark squares} (24... Bxg2 $16 25. Kxg2 Qa8+ 26. f3 Qc6) 25. Bf1 {[%emt 0:04:33]} (25. Bxh6 $1 $18 Bxg2 26. Bxg7 Kxg7 27. Qg5+ (27. Kxg2 Rg8 $11) 27... Kh7 28. Rf4 (28. Kxg2 Rg8 $11) 28... Nxe5 29. h6 (29. Qxe5 Qb7 $18)) 25... Qa8 $2 {[%emt 0:15:41][%mdl 8192]} (25... b5 $16 26. Rc3 b4) 26. Bd3+ {[%emt 0:01:17][%cal Bf1d3,Bd3b1,Bb1e4][%mdl 32]} Kg8 {[%emt 0:00:04]} 27. Re1 {[%emt 0:00:15][%cal Of4h6]} Bh1 {[%emt 0:09:47]} 28. Rce4 {[%emt 0:06:10] Active counter play!} f5 {[%emt 0:01:47] [#]} ({Much worse is} 28... Bxe4 29. Bxe4 Qb8 30. Bxh6 Nxe5 31. Qg5) 29. exf6 $1 {[%emt 0:01:11]} Nxf6 {[%emt 0:00:02]} 30. Kxh1 {[%emt 0:00:06]} c4 {[%emt 0:00:24]} 31. Bb1 {[%emt 0:00:31]} Rc5 {[%emt 0:01:35][%cal Bc8c5,Bc5h5,Bh5a5,Ba5d5][%mdl 32] [#]} 32. f3 $1 {[%emt 0:02:57]} Rxh5+ {[%emt 0:03:22]} (32... Nxe4 33. Rxe4) 33. Kg2 {[%emt 0:00:05]} Nxe4 {[%emt 0:00:08]} 34. Bxe4 {[%emt 0:00:04]} Qc8 {[%emt 0:00:06]} 35. g4 {[%emt 0:01:25]} Ra5 {[%emt 0:00:12]} 36. Bb1 {[%emt 0:02:55] Qc2 would now be deadly. A strong pair of Bishops.} Rf8 {[%emt 0:03:21]} (36... Rd5 $142) 37. d7 {[%emt 0:02:09]} Qa8 {[%emt 0:00:02]} 38. Rxe6 {[%emt 0:01:20]} (38. Qd6 $142 Rb5 39. Qxe6+ Kh8 40. Kg3 (40. Qxc4 Rxb2+ 41. Kg3 Rxb1 $18) 40... Rb3 41. axb3 c3 42. Qg6 (42. bxc3 Qd8 43. Be5 Qg5 44. f4 Qxe5 45. Rxe5 a6 46. d8=Q Rxd8) 42... c2 43. Bxc2 (43. Qxc2 Kg8 44. Qh7+ Kf7 45. Bxh6 Qb8+ 46. Kg2 Qe5 47. Rxe5 Rg8 48. Qf5#)) 38... Rd5 {[%emt 0:00:10]} 39. Qc2 {[%emt 0:01:38]} Rd3 {[%emt 0:07:54] [#]} 40. Re3 $1 {[%emt 0:02:49]} Rxe3 {[%emt 0:04:09]} (40... Qd5 41. Rxd3) 41. Qh7+ {[%emt 0:20:08]} Kf7 {[%emt 0:20:02]} 42. Bxe3 {[%emt 0:00:06][%cal Ob1f5]} Qc6 {[%emt 0:00:17]} 43. Bd4 {[%emt 0:01:55]} Rg8 {[%emt 0:03:13] [#]} 44. Qxg8+ $3 {[%emt 0:00:07][%mdl 512]} 1-0